Cogmind - Beta 13 *** ADVENTURER MODE // 2024.05.27 @ 13:34:38 Player: Blade Result: Self-destructed Performance ------------- Evolutions (1) 500 Regions Visited (3) 600 Robots Destroyed (16) 80 Value Destroyed (344) 344 Prototype IDs (0) 0 Alien Tech Used (0) 0 Bonus (0) 0 TOTAL SCORE: 1524 Bonus ------- None Cogmind --------- Core Integrity 283/400 Matter 292/300 Energy 100/100 System Corruption 0% Temperature Cool (0) Movement Flying (44) Location -9/Storage Parts ------- > --- POWER (1) -------- (None) > --- PROPULSION (4) --- Aluminum Leg Flight Unit Flight Unit Flight Unit > --- UTILITY (2) ------ Small Storage Unit > --- WEAPON (2) ------- Small Laser > --- INVENTORY (8) ---- Ion Engine Light Treads Light Treads Peak State ------------ > --- POWER ------------ Ion Engine > --- PROPULSION ------- Aluminum Leg Aluminum Leg > --- UTILITY ---------- Small Storage Unit Sensor Array > --- WEAPON ----------- Small Laser Assault Rifle > --- INVENTORY -------- Light Ion Engine Light Treads Light Treads Compact Wheel Flight Unit Flight Unit Light Assault Rifle Grenade Launcher [Rating: 7] Favorites ----------- Power Light Ion Engine Engine Light Ion Engine Propulsion Aluminum Leg Leg Aluminum Leg Flight Unit Flight Unit Utility Small Storage Unit Device Sensor Array Storage Small Storage Unit Weapon Small Laser Energy Gun Small Laser Ballistic Gun Assault Rifle Ballistic Cannon Light Cannon Launcher Grenade Launcher Build | -11 -10 -9 -9 ------- Run | Yrd Mat Mat Sto Slots Evolved 2 | . . 2 . Power . | . . . . Propulsion 2 | . . 2 . Utility . | . . . . Weapon . | . . . . Parts Attached 10 | . 1 5 4 Power 1 | . . 1 . Engine 1 | . . 1 . Core . | . . . . Reactor . | . . . . Propulsion 3 | . . . 3 Treads . | . . . . Leg . | . . . . Wheel . | . . . . Hover . | . . . . Flight 3 | . . . 3 Utility 1 | . 1 . . Device 1 | . 1 . . Storage . | . . . . Processor . | . . . . Hackware . | . . . . Protection . | . . . . Artifact . | . . . . Weapon 5 | . . 4 1 Energy Gun 1 | . . . 1 Energy Cannon . | . . . . Ballistic Gun 1 | . . 1 . Ballistic Cannon 1 | . . 1 . Launcher 2 | . . 2 . Special Weapon . | . . . . Impact Weapon . | . . . . Slashing Weapon . | . . . . Piercing Weapon . | . . . . Special Melee Weapon . | . . . . Unidentified Prototypes . | . . . . Parts Lost 5 | . . . 5 Power 1 | . . . 1 Propulsion 1 | . . . 1 Utility 1 | . . . 1 Weapon 2 | . . . 2 Highest Loss Streak 3 | . . . 3 To Critical Strikes . | . . . . Average Slot Usage (%) 75 | . 86 74 69 Engine 11 | . 14 11 9 Leg 20 | . 28 22 15 Flight 3 | . . . 6 Device 7 | . 1 11 7 Storage 11 | . 14 11 11 Energy Gun 5 | . 14 3 2 Ballistic Gun 6 | . 14 8 . Ballistic Cannon 4 | . . 4 8 Launcher 4 | . . 4 7 Naked Turns . | . . . . Heaviest Build 16 | 13 14 16 15 Greatest Support 20 | 20 20 20 20 Greatest Overweight (x) 1 | . . . 1 Average Overweight (x) . | . . . . Largest Inventory Capacity 8 | 8 8 8 8 Average Capacity 8 | 8 8 8 8 Most Carried 8 | 6 8 8 7 Average Carried 6 | 6 7 7 6 Final Capacity 8 | 8 8 8 8 Final Carried 8 | 6 8 7 3 Class Distribution -------------------- 100% | Mutant Dominant Class ---------------- Mutant | -10/Materials Mutant | -9/Materials Mutant | -9/Storage Resources | -11 -10 -9 -9 ----------- Run | Yrd Mat Mat Sto Matter Collected 515 | 200 . 53 262 Remotely . | . . . . Salvage Created 410 | . 11 151 248 Parts 32 | . 3 11 18 Haulers Intercepted 2 | . . 1 1 Recyclers Shooed . | . . . . Parts Field Recycled . | . . . . Retrieved Matter . | . . . . Parts Self-Destructed . | . . . . Prevented . | . . . . Kills | -11 -10 -9 -9 ------- Run | Yrd Mat Mat Sto Combat Hostiles Destroyed 10 | . . 5 5 Cannons 4 | . . 1 3 AOE 6 | . . 4 2 Classes Destroyed 7 | . 1 3 3 Builder 1 | . . . 1 Hauler 2 | . . 1 1 Recycler 1 | . . . 1 Watcher 2 | . 1 1 . Swarmer 4 | . . 4 . Grunt 3 | . . . 3 Sentry 3 | . . 1 2 Best Kill Streak 4 | . 1 4 4 Combat Bots Only 4 | . . 4 2 Max Kills in Single Turn 4 | . 1 4 2 Gunslinging . | . . . . Exploded 4 | . . 4 2 Melee . | . . . . Uniques/NPCs Destroyed . | . . . . Combat | -11 -10 -9 -9 -------- Run | Yrd Mat Mat Sto Hostile Shots Fired 92 | . . 6 86 Missed 29 | . . . 29 Damage Taken 615 | . . 55 560 Core 117 | . . . 117 Absorbed by Shields 3 | . . . 3 Ignored by Resistances 186 | . . 16 170 Core Remaining (%) 100 | 100 100 . . Volleys Fired 57 | . 7 10 40 Largest 2 | . 2 2 2 Hottest 65 | . 60 50 65 Shots Fired 69 | . 13 15 41 Gun 23 | . 13 9 1 Cannon 42 | . . 3 39 Launcher 4 | . . 3 1 Special . | . . . . Kinetic 58 | . 7 12 39 Thermal 7 | . 6 . 1 Explosive 4 | . . 3 1 Electromagnetic . | . . . . Robot Hit Streak 13 | . 3 6 13 Robot Miss Streak 3 | . 2 2 3 Penetration Max . | . . . . Secondary Targets . | . . . . Shots Hit Robots 47 | . 7 9 31 Core Hits 20 | . 1 10 9 Critical Kills . | . . . . Critical Parts Destroyed . | . . . . Critical Strikes 3 | . . 2 1 Blast 3 | . . 2 1 Melee Attacks . | . . . . Impact . | . . . . Slashing . | . . . . Piercing . | . . . . Sneak Attacks . | . . . . Combat Hostiles . | . . . . Follow-up Attacks . | . . . . Damage Inflicted 1017 | . 82 248 687 Guns 147 | . 82 54 11 Cannons 594 | . . 33 561 Explosions 276 | . . 161 115 Melee . | . . . . Ramming . | . . . . Kinetic 696 | . 48 87 561 Thermal 45 | . 34 . 11 Explosive 276 | . . 161 115 Electromagnetic . | . . . . Impact . | . . . . Slashing . | . . . . Piercing . | . . . . Highest Corruption . | . . . . Average Corruption . | . . . . Corruption Purged . | . . . . Corruption Blocked . | . . . . Overload Shots . | . . . . Overflow Damage 4 | . . . 4 Projectiles 4 | . . . 4 Explosions . | . . . . Melee . | . . . . Knockbacks 7 | . . . 7 Impact . | . . . . Kinetic 7 | . . . 7 Secondary . | . . . . Self-Inflicted Damage . | . . . . Shots . | . . . . Rammed . | . . . . Targets Rammed . | . . . . Kicked . | . . . . Crushed . | . . . . Highest Temperature 19 | . . 19 6 Average Temperature 5 | . . 10 3 Received Heat Transfer 339 | . . 36 303 Siege Activations . | . . . . Robots Corrupted . | . . . . Combat Hostiles . | . . . . Parts Fried . | . . . . Impact Corruptions . | . . . . Robots Melted . | . . . . Combat Hostiles . | . . . . Parts Melted . | . . . . Heat Transferred 100 | . 75 . 25 Parts Sabotaged . | . . . . Parts Stolen . | . . . . Parts Stripped . | . . . . Power Chain Reactions . | . . . . Alert | -11 -10 -9 -9 ------- Run | Yrd Mat Mat Sto Peak Influence 266 | . 52 212 266 Initial 76 | . . 18 76 Average 120 | . 7 94 201 Maximum Alert Level 1 | . . 1 1 Low Security (%) 69 | 100 100 92 37 Level 1 30 | . . 7 62 Level 2 . | . . . . Level 3 . | . . . . Level 4 . | . . . . Level 5 . | . . . . High Security . | . . . . Max Security . | . . . . Squads Dispatched 2 | . . . 2 Investigation 1 | . . . 1 Extermination . | . . . . Reinforcement 1 | . . . 1 Assault . | . . . . Garrison . | . . . . Intercept . | . . . . Searches Triggered . | . . . . Construction Impeded . | . . . . Haulers Reinforced . | . . . . Active Scanning Responses . | . . . . Cargo Convoy Interrupts . | . . . . Stealth | -11 -10 -9 -9 --------- Run | Yrd Mat Mat Sto Distress Signals . | . . . . Communications Jammed . | . . . . Distress Signals . | . . . . Times Spotted 29 | . 4 6 19 Peak Tracking Total 10 | . 2 4 10 Tactical Retreats . | . . . . Traps | -11 -10 -9 -9 ------- Run | Yrd Mat Mat Sto Traps Triggered 2 | . . . 2 Indirectly . | . . . . Trap Hack Attempts . | . . . . Triggered . | . . . . Disarmed . | . . . . Reprogrammed . | . . . . Reused . | . . . . Traps Extracted . | . . . . Installed . | . . . . Triggered . | . . . . Machines | -11 -10 -9 -9 ---------- Run | Yrd Mat Mat Sto Machines Disabled 2 | . . 1 1 Max in Single Turn 1 | . . 1 1 Garrison Access 1 | . . . 1 Machines Repaired . | . . . . Machines Dismantled . | . . . . Machines Sabotaged . | . . . . Overloaded Fab Kills . | . . . . Hacking | -11 -10 -9 -9 --------- Run | Yrd Mat Mat Sto Machines Accessed 4 | . 1 2 1 Terminals 2 | . 1 1 . Fabricators . | . . . . Repair Stations . | . . . . Recycling Units 1 | . . 1 . Scanalyzers . | . . . . Garrison Access 1 | . . . 1 Total Hacks 5 | . 1 2 2 Successful 4 | . 1 2 1 Failed 1 | . . . 1 Catastrophic . | . . . . Database Lockouts . | . . . . Manual 1 | . 1 . . Terminals 2 | . 1 1 . Fabricators . | . . . . Repair Stations . | . . . . Recycling Units 1 | . . 1 . Scanalyzers . | . . . . Garrison Access 2 | . . . 2 Terminal Hacks 2 | . 1 1 . Hauler Manifests 1 | . 1 . . Zone Layout 1 | . . 1 . Fabricator Hacks . | . . . . Repair Station Hacks . | . . . . Recycling Unit Hacks 1 | . . 1 . Retrieve Components 1 | . . 1 . Scanalyzer . | . . . . Garrison Access Hacks 1 | . . . 1 Seal Access 1 | . . . 1 Unauthorized Hacks . | . . . . Terminals . | . . . . Fabricators . | . . . . Repair Stations . | . . . . Recycling Units . | . . . . Scanalyzers . | . . . . Garrison Access . | . . . . Data Cores Recovered . | . . . . Used . | . . . . Hacking Detections 1 | . . 1 . Full Trace Events . | . . . . Feedback Events . | . . . . Feedback Blocked . | . . . . Robot Schematics Acquired . | . . . . Robots Built . | . . . . Authchips . | . . . . Time . | . . . . Total Robot Build Rating . | . . . . Part Schematics Acquired . | . . . . Parts Built . | . . . . Authchips . | . . . . Time . | . . . . Total Part Build Rating . | . . . . Parts Repaired . | . . . . Time . | . . . . Parts Recycled . | . . . . Recycled Matter . | . . . . Retrieved Matter . | . . . . Retrieved Components 2 | . . 2 . Parts Scanalyzed . | . . . . Part Schematics Acquired . | . . . . Parts Damaged . | . . . . Bothacking | -11 -10 -9 -9 ------------ Run | Yrd Mat Mat Sto Used RIF Installer . | . . . . Robots Hacked . | . . . . Non-combat . | . . . . Combat . | . . . . Robot Hacks Applied . | . . . . Relay Couplers Released . | . . . . Fabnet Peak Effective % . | . . . . Robots Rewired . | . . . . Allies Hacked . | . . . . Hacks Repelled . | . . . . Allies | -11 -10 -9 -9 -------- Run | Yrd Mat Mat Sto Total Allies . | . . . . Largest Group . | . . . . Highest-Rated Group . | . . . . Highest-Rated Ally . | . . . . Total Orders . | . . . . Ally Attacks . | . . . . Total Damage . | . . . . Kills . | . . . . Allies Corrupted . | . . . . Allies Melted . | . . . . Intel | -11 -10 -9 -9 ------- Run | Yrd Mat Mat Sto Robot Analysis Total . | . . . . Derelict Logs Recovered . | . . . . Drone Launches . | . . . . Drone Recoveries . | . . . . Exploration | -11 -10 -9 -9 ------------- Run | Yrd Mat Mat Sto Turns Passed 655 | 2 168 189 296 Spaces Moved 476 | 2 120 130 224 Core . | . . . . Treads . | . . . . Legs 339 | 2 120 130 87 Wheels . | . . . . Hover . | . . . . Flight 137 | . . . 137 Fastest Speed 44 | 120 120 120 44 Average Speed 102 | 120 120 120 82 Slowest Speed 190 | 120 120 120 190 Overloaded Moves . | . . . . Propulsion Burnouts . | . . . . Robots Hopped 9 | . . . 9 Cave-ins Triggered . | . . . . Exploration Rate (%) 18 | 1 30 15 29 Regions Visited 3 Branch Regions 1 Pre-discovered Areas . | . . . . Known Exits Taken . | . . . . Unknown Exits Taken 3 | 1 1 1 . Scrap Searched . | . . . . Spaces Dug . | . . . . Terrain Destroyed 21 | . . 19 2 Melee . | . . . . Projectile . | . . . . AOE 21 | . . 19 2 Terrain Rammed . | . . . . Walls Destroyed . | . . . . Machines Disabled . | . . . . Actions | -11 -10 -9 -9 --------- Run | Yrd Mat Mat Sto Total 564 | 1 131 148 284 Wait 23 | . . . 23 Move 456 | 1 119 129 207 Hop 8 | . . . 8 Pick Up 4 | . 3 1 . Fast Attach 2 | . 1 1 . Attach 5 | . . 1 4 Detach . | . . . . Swap 3 | . . 3 . Drop 4 | . 1 3 . Fire 57 | . 7 10 40 Melee . | . . . . Ram . | . . . . Kick . | . . . . Crush . | . . . . Escape Stasis 2 | . . . 2 Rewire . | . . . . Trap . | . . . . Miscellaneous . | . . . . Route ------- -11/Scrapyard -10/Materials -9/Materials (discovered 2 exits: [Min] / *Sto) -9/Storage History --------- Turn | Location | Event 1 | -11/Scrapyard | Discovered new exit (range 1) 3 | -11/Scrapyard | Entered Materials 149 | -10/Materials | Discovered new exit (range 7) 171 | -10/Materials | Entered another Materials area 171 | -9/Materials | Evolved 2 slots: Propulsion x2 317 | -9/Materials | Build established: Mutant 329 | -9/Materials | Discovered new exit (range 10) 329 | -9/Materials | Discovered new exit (range 18) 360 | -9/Materials | Entered Storage 613 | -9/Storage | Lost 3 parts (1u2w) 656 | -9/Storage | Self-destructed Last Messages --------------- 00560_ K-01 Serf collects debris. 00567_ Grenade Launcher destroyed. 00569_ Sensor Array destroyed. 00582_ Lgt. Cannon destroyed. 00591_ Knocked back. 00604_ Triggered Alarm Trap. 00604_ An alarm sounds. 00604_ ALERT: Alarm triggered, dispatching investigation squad. 00622_ U-05 Engineer destroyed. 00625_ Lgt. Ion Engine destroyed. 00627_ Acquired 4 matter. 00633_ Acquired 50 matter. 00644_ K-01 Serf collects debris. 00654_ Triggered Stasis Trap. 00654_ A bubble of rippling energy engulfs the area. 00654_ Field strength at 94. 00654_ Field strength at 85. 00655_ Field strength at 79. Map ----- +----------------------------------------------------+ | ????????????????????????# #??????????? | | ????????????????????????# #??????????? | | ????????????????????????# #??????????? | | ????????????????????????# #??????????? | | ????????????????????????# #??????????? | | ????????????????????????# #??????????? | | ????????????????????????# #??????????? | | ????????????????????????# #??????????? | | ????????????????????????# #??????????? | | ????????????????????????# +??????????? | | ????????????????????????# #??????????? | | ????????????????????????# #??????????? | | ????????????????????????# #??????????? | | ???????????????????????## ##?????????? | | ???????????????????????# #?????????? | | ???????????????????????# #?????????? | | ???????????????????????# T #?????????? | | ???????????????????????# #?????????? | | ???????????????????????# #?????????? | | ??????????????????????####+#####???????? | | ??????????????????????# #???????? | | ??????????????????????# "" """#???????? | | ??????????????????????# "T """#???????? | | ??????????????????????# "" """#???????? | | ??????????????????????# ! #???????? | | ??????????????????????#==@ """#???????? | | ??????????????????????#==! ^"""#???????? | | ??????????????????????#^!! """#???????? | | ??????????????????????# = Y #???????? | | ??????????????????????####### ##???????? | | ?????????????????????????????##????????? | | ???????????????????????????????????????? | | ???????????????????????????????????????? | | | | | | | | | | | | | | | | | | | | | | | | | | | | | | | | | | | +----------------------------------------------------+ Best States ------------- Heat Dissipation 28 Energy Generation 10 Energy Capacity 250 Matter Stores 300 Matter Capacity 300 Sight Range 16 Robot Scan Range 14 Terrain Scan Density 10 Resistance: KI 20 Resistance: TH 20 Resistance: EX 20 Resistance: EM 20 Resistance: I 20 Resistance: S 20 Resistance: P 20 Evasion (%) 61 Offensive Hacking 10 Item Schematics ----------------- None Robot Schematics ------------------ None Fabricated ------------ Nothing Alien Tech Used ----------------- None Achievements -------------- None Challenges ------------ None Game ------ Seed ColdPointyScrap Manual? 0 Play Time 00:10:55 Cumulative 57.5 hours Start 2024.05.27 @ 13:27:02 End 2024.05.27 @ 13:34:38 Sessions 1 Manual Loads 0 Difficulty Adventurer Special Mode None Game No. 75 Rogue 0 Adventurer 70 Explorer 5 Win Type - Total 1 Types 1/0/0/0/0/0/0/0/0 Lore% 31 Gallery% 46 Achievement% 36 Wizard Run 0 Options --------- Layout 1 ASCII 0 Keyboard 0 Movement Arrows Keybinds 0 Fullscreen 2 Font 24/Terminus Map View 50x35 Zoom Use 0% Tactical HUD 1 Map Filters NONE Filters NONE Steam 1 RUN: 9c619c3b-e17e-43c4-97fd-146c91351552